Cogmind - Beta 10.2 *** ADVENTURER MODE // 2021.11.28 @ 00:12:24 Player: Sanyaskillpro Result: Destroyed by D-53 Grenadier with Mini Grenade Launcher Performance ------------- Evolutions (0) 0 Regions Visited (2) 400 Robots Destroyed (10) 50 Value Destroyed (171) 171 Prototype IDs (0) 0 Alien Tech Used (0) 0 Bonus (0) 0 TOTAL SCORE: 621 Bonus ------- None Cogmind --------- Core Integrity 0/250 Matter 243/300 Energy 94/100 System Corruption 0% Temperature Cool (0) Movement Core (50) Location -10/Mines Parts ------- > --- POWER (1) -------- (None) > --- PROPULSION (2) --- (None) > --- UTILITY (2) ------ Transport Network Coupler > --- WEAPON (2) ------- (None) > --- INVENTORY (4) ---- Light Nuclear Core Aluminum Leg Light Assault Rifle Peak State ------------ > --- POWER ------------ Light Ion Engine > --- PROPULSION ------- Aluminum Leg Flexi-carbon Leg > --- UTILITY ---------- Transport Network Coupler > --- WEAPON ----------- Light Assault Rifle Grenade Launcher > --- INVENTORY -------- Light Nuclear Core Aluminum Leg Light Assault Rifle [Rating: 10] Favorites ----------- Power Light Ion Engine Engine Light Ion Engine Propulsion Aluminum Leg Leg Aluminum Leg Utility Small Storage Unit Storage Small Storage Unit Processor Transport Network Coupler Weapon Light Assault Rifle Energy Gun Small Laser Ballistic Gun Light Assault Rifle Launcher Grenade Launcher Build | -11 -10 -10 ------- Run | Scr Mat Min Slots Evolved . | . . . Power . | . . . Propulsion . | . . . Utility . | . . . Weapon . | . . . Parts Attached 8 | . 3 5 Power 1 | . 1 . Engine 1 | . 1 . Core . | . . . Reactor . | . . . Propulsion 2 | . . 2 Treads . | . . . Leg 2 | . . 2 Wheel . | . . . Hover . | . . . Flight . | . . . Utility 1 | . 1 . Device . | . . . Storage . | . . . Processor 1 | . 1 . Hackware . | . . . Protection . | . . . Artifact . | . . . Weapon 4 | . 1 3 Energy Gun 1 | . 1 . Energy Cannon . | . . . Ballistic Gun 1 | . . 1 Ballistic Cannon . | . . . Launcher 2 | . . 2 Special Weapon . | . . . Impact Weapon . | . . . Slashing Weapon . | . . . Piercing Weapon . | . . . Special Melee Weapon . | . . . Unidentified Prototypes . | . . . Parts Lost 10 | . 1 9 Power 2 | . 1 1 Propulsion 3 | . . 3 Utility 1 | . . 1 Weapon 4 | . . 4 Highest Loss Streak 9 | . 1 9 Average Slot Usage (%) 95 | . 95 96 Engine 13 | . 13 14 Leg 27 | . 28 27 Storage 13 | . 14 12 Processor 11 | . 9 14 Energy Gun 5 | . 2 10 Ballistic Gun 22 | . 25 14 Naked Turns . | . . . Heaviest Build 11 | 9 9 11 Greatest Support 30 | 20 20 30 Greatest Overweight (x) 1 | . . 1 Average Overweight (x) . | . . . Largest Inventory Capacity 6 | 6 6 6 Average Capacity 5 | 6 6 5 Most Carried 6 | 6 6 6 Average Carried 5 | 6 5 5 Final Capacity 6 | 6 6 4 Final Carried 6 | 6 6 3 Class Distribution -------------------- 100% | Mutant Dominant Class ---------------- Mutant | -10/Materials Mutant | -10/Mines Resources | -11 -10 -10 ----------- Run | Scr Mat Min Matter Collected 305 | 210 82 13 Remotely . | . . . Salvage Created 450 | 74 261 115 Parts 20 | 1 14 5 Haulers Intercepted 2 | . 2 . Recyclers Shooed . | . . . Parts Field Recycled . | . . . Retrieved Matter . | . . . Parts Self-Destructed . | . . . Prevented . | . . . Kills | -11 -10 -10 ------- Run | Scr Mat Min Combat Hostiles Destroyed 11 | . 3 8 Guns 10 | . 3 7 AOE 1 | . . 1 Classes Destroyed 6 | 1 3 2 Hauler 2 | . 2 . Recycler 1 | 1 . . Watcher 1 | . 1 . Swarmer 3 | . . 3 Grunt 3 | . 3 . Assembled 5 | . . 5 Best Kill Streak 5 | 1 2 5 Combat Bots Only 5 | . 2 5 Max Kills in Single Turn 2 | 1 1 2 Gunslinging 1 | . . 1 Exploded 1 | . . 1 Melee . | . . . Uniques/NPCs Destroyed . | . . . Combat | -11 -10 -10 -------- Run | Scr Mat Min Damage Taken 1174 | . 140 1034 Core 258 | . 39 219 Absorbed by Shields . | . . . Core Remaining (%) 100 | 100 . . Volleys Fired 59 | 5 29 25 Largest 2 | 2 2 2 Hottest 60 | 40 40 60 Shots Fired 114 | 10 57 47 Gun 110 | 10 57 43 Cannon . | . . . Launcher 4 | . . 4 Special . | . . . Kinetic 92 | 10 57 25 Thermal 18 | . . 18 Explosive 4 | . . 4 Electromagnetic . | . . . Robot Hit Streak 22 | 3 17 22 Robot Miss Streak 3 | 1 3 3 Penetration Max . | . . . Secondary Targets 1 | . . 1 Max Gunslinging Chain 1 | . . 1 Shots Hit Robots 86 | 6 41 39 Core Hits 42 | 2 17 23 Critical Hits . | . . . Critical Kills . | . . . Critical Parts Destroyed . | . . . Melee Attacks . | . . . Impact . | . . . Slashing . | . . . Piercing . | . . . Sneak Attacks . | . . . Combat Hostiles . | . . . Follow-up Attacks . | . . . Damage Inflicted 903 | 49 339 515 Guns 700 | 49 339 312 Cannons . | . . . Explosions 203 | . . 203 Melee . | . . . Ramming . | . . . Kinetic 563 | 49 339 175 Thermal 137 | . . 137 Explosive 203 | . . 203 Electromagnetic . | . . . Impact . | . . . Slashing . | . . . Piercing . | . . . Highest Corruption . | . . . Average Corruption . | . . . Corruption Purged . | . . . Overload Shots . | . . . Overflow Damage . | . . . Projectiles . | . . . Explosions . | . . . Melee . | . . . Knockbacks . | . . . Impact . | . . . Kinetic . | . . . Secondary . | . . . Self-Inflicted Damage 32 | . . 32 Shots 1 | . . 1 Rammed . | . . . Targets Rammed . | . . . Kicked . | . . . Crushed . | . . . Highest Temperature 40 | . 13 40 Average Temperature 19 | . 7 22 Received Heat Transfer 102 | . 102 . Siege Activations . | . . . Robots Corrupted . | . . . Combat Hostiles . | . . . Parts Fried . | . . . Impact Corruptions . | . . . Robots Melted . | . . . Combat Hostiles . | . . . Parts Melted . | . . . Heat Transferred 300 | . . 300 Parts Sabotaged . | . . . Parts Stolen . | . . . Parts Stripped . | . . . Power Chain Reactions . | . . . Missiles Intercepted . | . . . Alert | -11 -10 -10 ------- Run | Scr Mat Min Peak Influence 113 | 5 113 106 Initial 36 | . 2 36 Average 61 | 2 54 94 Maximum Alert Level . | . . . Low Security (%) 100 | 100 100 100 Level 1 . | . . . Level 2 . | . . . Level 3 . | . . . Level 4 . | . . . Level 5 . | . . . High Security . | . . . Max Security . | . . . Squads Dispatched . | . . . Investigation . | . . . Extermination . | . . . Reinforcement . | . . . Assault . | . . . Garrison . | . . . Intercept . | . . . Construction Impeded . | . . . Haulers Reinforced . | . . . Stealth | -11 -10 -10 --------- Run | Scr Mat Min Distress Signals 1 | . 1 . Communications Jammed . | . . . Distress Signals . | . . . Times Spotted 36 | . 6 30 Peak Tracking Total 12 | . 4 12 Tactical Retreats 4 | . 1 3 Traps | -11 -10 -10 ------- Run | Scr Mat Min Traps Triggered . | . . . Indirectly . | . . . Trap Hack Attempts . | . . . Triggered . | . . . Disarmed . | . . . Reprogrammed . | . . . Reused . | . . . Traps Extracted . | . . . Installed . | . . . Triggered . | . . . Machines | -11 -10 -10 ---------- Run | Scr Mat Min Machines Disabled . | . . . Max in Single Turn . | . . . Machines Sabotaged . | . . . Garrisons Compromised . | . . . Overloaded Fab Kills . | . . . Fab Network Shutdowns . | . . . Hacking | -11 -10 -10 --------- Run | Scr Mat Min Machines Accessed 2 | . 2 . Terminals 2 | . 2 . Fabricators . | . . . Repair Stations . | . . . Recycling Units . | . . . Scanalyzers . | . . . Garrison Access . | . . . Total Hacks 6 | . 6 . Successful 5 | . 5 . Failed 1 | . 1 . Catastrophic . | . . . Database Lockouts . | . . . Manual 4 | . 4 . Terminals 6 | . 6 . Fabricators . | . . . Repair Stations . | . . . Recycling Units . | . . . Scanalyzers . | . . . Garrison Access . | . . . Terminal Hacks 4 | . 4 . Robot Analysis 1 | . 1 . Branch Access Points 1 | . 1 . Transport Status 1 | . 1 . Zone Layout 1 | . 1 . Fabricator Hacks . | . . . Repair Station Hacks . | . . . Recycling Unit Hacks . | . . . Scanalyzer . | . . . Garrison Access Hacks . | . . . Unauthorized Hacks 1 | . 1 . Terminals 1 | . 1 . Botnet 1 | . 1 . Fabricators . | . . . Repair Stations . | . . . Recycling Units . | . . . Scanalyzers . | . . . Garrison Access . | . . . Data Cores Recovered . | . . . Used . | . . . Hacking Detections 1 | . 1 . Full Trace Events . | . . . Feedback Events . | . . . Feedback Blocked . | . . . Robot Schematics Acquired . | . . . Robots Built . | . . . Matter . | . . . Time . | . . . Total Robot Build Rating . | . . . Part Schematics Acquired . | . . . Parts Built . | . . . Matter . | . . . Time . | . . . Total Part Build Rating . | . . . Parts Repaired . | . . . Time . | . . . Parts Recycled . | . . . Recycled Matter . | . . . Retrieved Matter . | . . . Retrieved Components . | . . . Parts Scanalyzed . | . . . Part Schematics Acquired . | . . . Parts Damaged . | . . . Bothacking | -11 -10 -10 ------------ Run | Scr Mat Min Used RIF Installer . | . . . Robots Hacked . | . . . Non-combat . | . . . Combat . | . . . Robot Hacks Applied . | . . . Relay Couplers Released . | . . . Robots Rewired . | . . . Allies Hacked . | . . . Hacks Repelled . | . . . Allies | -11 -10 -10 -------- Run | Scr Mat Min Total Allies . | . . . Largest Group . | . . . Highest-Rated Group . | . . . Highest-Rated Ally . | . . . Total Orders . | . . . Ally Attacks . | . . . Total Damage . | . . . Kills . | . . . Allies Corrupted . | . . . Allies Melted . | . . . Intel | -11 -10 -10 ------- Run | Scr Mat Min Robot Analysis Total 1 | . 1 . Derelict Logs Recovered 1 | . . 1 Drone Launches . | . . . Drone Recoveries . | . . . Exploration | -11 -10 -10 ------------- Run | Scr Mat Min Turns Passed 587 | 45 381 161 Spaces Moved 334 | 27 238 69 Core 1 | . . 1 Treads . | . . . Legs 333 | 27 238 68 Wheels . | . . . Hover . | . . . Flight . | . . . Fastest Speed 50 | 120 120 50 Average Speed 119 | 120 120 119 Slowest Speed 150 | 120 120 150 Overloaded Moves . | . . . Propulsion Burnouts . | . . . Robots Hopped . | . . . Cave-ins Triggered . | . . . Exploration Rate (%) 20 | 3 37 20 Regions Visited 2 Branch Regions 1 Pre-discovered Areas 1 | . . 1 Known Exits Taken 1 | . 1 . Unknown Exits Taken 1 | 1 . . Scrap Searched 1 | . . 1 Spaces Dug . | . . . Terrain Destroyed 17 | . . 17 Melee . | . . . Projectile . | . . . AOE 17 | . . 17 Terrain Rammed . | . . . Walls Destroyed . | . . . Machines Disabled . | . . . Actions | -11 -10 -10 --------- Run | Scr Mat Min Total 425 | 31 289 105 Wait 12 | . 9 3 Move 332 | 26 237 69 Hop . | . . . Pick Up 7 | . 6 1 Fast Attach 2 | . 1 1 Attach 4 | . 1 3 Detach . | . . . Swap 2 | . 1 1 Drop 7 | . 5 2 Fire 59 | 5 29 25 Melee . | . . . Ram . | . . . Kick . | . . . Crush . | . . . Escape Stasis . | . . . Rewire . | . . . Trap . | . . . Miscellaneous . | . . . Route ------- -11/Scrapyard -10/Materials (discovered 2 exits: *Min x2) -10/Mines History --------- Turn | Location | Event 9 | -11/Scrapyard | Discovered new exit (range 3) 46 | -11/Scrapyard | Entered Materials 54 | -10/Materials | Identified exit to Mines 307 | -10/Materials | Build established: Mutant 427 | -10/Materials | Entered Mines 470 | -10/Mines | Met a Derelict bent on vengeance 480 | -10/Mines | Assembled infested the area 485 | -10/Mines | Assisted by a Guerilla fighting off Assembled 564 | -10/Mines | Core integrity fell below 50% 585 | -10/Mines | Core integrity fell below 20% 588 | -10/Mines | Destroyed by D-53 Grenadier with Mini Grenade Launcher Last Messages --------------- 00564_ as-07653 destroyed. 00566_ The unstable cave ceiling collapses. 00566_ Sml. Storage Unit destroyed. 00567_ Acquired Flexi-carbon Leg. 00568_ The unstable cave ceiling collapses. 00572_ as-37650 destroyed. 00573_ U-05 Engineer lays Concrete. 00573_ as-71781 destroyed. 00574_ The unstable cave ceiling collapses. 00574_ U-05 Engineer lays Concrete. 00576_ The unstable cave ceiling collapses. 00576_ U-05 Engineer lays Concrete. 00578_ The unstable cave ceiling collapses. 00580_ Lgt. Assault Rifle destroyed. 00581_ The unstable cave ceiling collapses. 00584_ Aluminum Leg destroyed. 00585_ The unstable cave ceiling collapses. 00586_ Lgt. Ion Engine destroyed. 00586_ Grenade Launcher destroyed. 00587_ Dropped Flexi-carbon Leg. Map ----- +----------------------------------------------------+ | ?????????????????????????????????????????????????? | | ?????????????????????????????????????????????????? | | ?????????????????????????????????????????????????? | | ?????????????????????????????????????????????????? | | ?????????????????????????????????????????????????? | | ?????????????????????????????????????????????????? | | ?????????????????????????????????????????????????? | | ?????????????????????????????????????????????????? | | ?????????????????????????????????????????????????? | | ?????????????????????????????????????????????????? | | ?????????????????????????????????????????????????? | | ?????????????????????????????????????????????????? | | ?????????????????????????????????????????????????? | | ?????????????????????????????????????????????????? | | ?????????????????????????????????????????????????? | | ?????????????????????????????????????????????????? | | ?????????????????????????????????????????????????? | | ?????????????????????????????????????????????????? | | ??????????????????????????#####??????????????????? | | ???????????????????????### ???????????????????? | | ???????????????????##### ????????????????????? | | ???????????????????# #????????????????????? | | ???????????????????# ##???????????????????? | | ???????????????????# ####????????????????? | | ???????????????????# # ##???????????????? | | ???????????????????# =@ ##??????????????? | | ???????????????????# ##?????????????? | | ??????????????????## ##???? ????? | | ??????????????????# # ## ????? | | ??????????????????# ### #????? | | ?????????????????## # # ????????? | | ????????????#????# ## ??????????? | | ???????????## ??## ##?? ??????????? | | ???????????# ?# d # ##???????????????? | | ???????????# # d ## ##??????????????? | | ????????????# # #### ##?????????????? | | ????????????# # #?## #?????????????? | | ????????????# % ##??# #?????????????? | | ????????????# % ##???# ##??????#####??? | | ???????????# %# % ##????# ######### ##?? | | ??????????# #?# #?????# %! #?? | | ?????????# #??## #####?????# !! ##? | | ????????# #????# #??????????######### #? | | ???????? ??????# #??????????????????# #? | | ??????????????????# #??????????????????# *[ #? | | ??????????????????# #????????########### %% ##? | | ??????????????????# ? =%=##?? | | ??????????????????###????????########### =##??? | | ???????????????????????????????????????## #???? | | ????????????????????????????????????????## ##???? | +----------------------------------------------------+ Best States ------------- Heat Dissipation 25 Energy Generation 10 Energy Capacity 125 Matter Stores 300 Matter Capacity 300 Sight Range 16 Terrain Scan Density 10 Resistance: KI 20 Resistance: TH 20 Resistance: EX 20 Resistance: EM 20 Resistance: I 20 Resistance: S 20 Resistance: P 20 Evasion (%) 40 Offensive Hacking 10 Item Schematics ----------------- None Robot Schematics ------------------ None Fabricated ------------ Nothing Alien Tech Used ----------------- None Achievements -------------- Let's See Who's Tougher Challenges ------------ None Game ------ Seed EtherialSurgeAmplifier Manual? 0 Play Time 00:10:39 Cumulative 30.4 hours Start 2021.11.27 @ 22:53:04 End 2021.11.28 @ 00:12:24 Sessions 2 Manual Loads 0 Difficulty Adventurer Special Mode None Game No. 27 Rogue 22 Adventurer 5 Explorer 0 Win Type - Total 0 Types 0/0/0/0/0/0/0/0/0 Lore% 35 Gallery% 41 Achievement% 29 Wizard Run 0 Options --------- ASCII 0 Keyboard 0 Movement Numpad Keybinds 0 Fullscreen 1 Font 18/TerminusBold Map View 76x50 Tactical HUD 1 Map Filters NONE Filters NONE Steam 1 RUN: b8a3d83f-7154-49fa-9773-c912f8aa35eb